{"text_format":"1","workbook":"xlsx","n_sheets":6,"sheets":["説明","基本情報登録","入力","健保正","健保副","年金正"],"not_rendered":{"charts":0,"images":0,"macros":1,"external_links":0,"defined_names":0,"comments":0,"pivot_tables":0},"unopened":[],"bounds":{"document_bytes":16777216,"sheet_cells":100000,"rows_first":2000,"rows_last":500,"rows_between":2000,"halvings":0,"cell_chars":16384,"cell_head_chars":4096},"cells_cut":0,"cells_raw":0,"read":"whole","date_system":"1900"}

{"sheet":"説明","index":0,"n_rows":23,"n_cols":6,"rows_kept":23,"cut":false,"hidden":false,"merged":[[17,1,19,15],[22,1,25,15],[6,1,7,2],[6,3,6,4],[7,3,7,4]]}
[]
["１．","シート「基本情報登録」で事業所の基本情報を入力してください。"]
["２．","シート「入力」で、入力欄を備考を参考に入力してください。"]
["３．","入力欄は漢字入力等は自動でオン・オフします。"]
["４．","数値のみを入力する欄は日本語入力がオフになっています。"]
[]
[null,"記載欄",null,null,null,"欄は必須項目です。"]
[null,null,null,null,null,"欄は該当する場合入力して下さい。"]
[]
[]
["５．","入力が終了したらシート「入力」の印刷ボタンをクリックしてください。"]
[null,"シート「健保正」・「健保副」・「年金正」の3枚が印刷されます。"]
[]
["※申出者記載欄に被保険者の印を必ず押印して下さい。"]
[]
[]
["○","産前産後休業終了時月額変更届とは"]
[null,"産前産後休業終了日に当該産前産後休業に係る子を養育している被保険者は、一定の条件を満たす場合、随時改定に該当しなくても、産前産後休業終了日の翌日が属する月以後3ヶ月間に受けた報酬の平均値に基づき、4ヶ月目の標準報酬月額から改定することができます。ただし、産前産後休業を終了した翌日に引き続いて育児休業等を開始した場合は、この申出はできません、"]
[]
[]
[]
["○","変更後の標準報酬月額が以前より下がった方へ"]
[null,"3歳未満の子を養育する被保険者または被保険者であった者で、養育期間中の各月の標準報酬月額が、養育開始月の前月の標準報酬月額を下回る場合、「養育期間の従前標準報酬月額みなし措置」という制度をご利用いただけます。この申出をいただきますと、将来の年金額の計算時には養育期間以前の標準報酬月額を用いることができますので、「産前産後休業終了時報酬月額変更届」とあわせて、「養育期間標準報酬月額特例申出書」を提出して下さい。"]

{"sheet":"基本情報登録","index":1,"n_rows":11,"n_cols":5,"rows_kept":11,"cut":false,"hidden":false,"merged":[[6,4,6,11],[7,4,7,11],[8,4,8,11],[9,4,9,11],[10,4,10,11],[5,4,5,11],[1,4,1,11],[2,1,3,1],[2,4,2,11],[3,4,3,11],[4,4,4,11]]}
[]
[null,"提出年月日",{"$f":"TODAY()","v":"2022-11-02"},null,"TODAY関数が入力されています。提出日を変更する場合のみ入力してください。"]
[null,"年金整理記号","南",null,"年金記号の「南」、「北」、「豊中」を入力してください。"]
[null,null,"ＷＥＤ",null,"年金記号の「ＷＥＤ」、「ＳＦＨ」を入力してください"]
[null,"年金納入告知書番号","00687",null,"「00687」のように必ず５ケタの数字を入力してください。"]
[null,"健康保険記号","532",null,"健康保険の記号を入力してください。"]
[null,"郵便番号","542-0066",null,"「542-0066」と－（ハイフン）を入力してください。"]
[null,"事業所所在地","大阪府大阪市中央区瓦屋町2-3-1",null,"住所が長い場合は、Alt+Enterで折り返してください。"]
[null,"事業所名称","大阪自動車整備健康保険組合",null,"事業所名を入力してください。"]
[null,"事業主氏名","理事長　健保　太郎",null,"代表者名を入力してください。"]
[null,"電話番号","06-6762-6371",null,"「06-6762-6371」と－（ハイフン)を入力してください。"]

{"sheet":"入力","index":2,"n_rows":39,"n_cols":9,"rows_kept":39,"cut":false,"hidden":false,"merged":[[2,1,25,1],[2,0,38,0],[1,1,1,2],[20,4,22,4],[23,4,25,4],[26,1,38,1],[30,2,31,2],[32,2,33,2],[34,4,36,4]]}
[]
[null,"入力項目",null,"入力欄","備考"]
["記載欄","必須項目","被保険者氏名","大阪健保　整子","被保険者の氏名を入力してください。",null,null,null,{"$f":"I9+31","v":"2023-02-02"}]
[null,null,"被保険者氏名（カナ）","オオサカケンポ　セイコ","被保険者の氏名（カナ）を入力してください。",null,1,"1.昇給"]
[null,null,"住所","大阪府大阪市中央区瓦屋町2-3-1　岸和田第3ビル3階","被保険者の住所を入力して下さい。住所とマンション名等の間にスペースを入れてください。",null,2,"2.降給",{"$f":"IF(ISNUMBER(D20),VLOOKUP(D20,G4:H5,2,0),\"\")","v":"2.降給"}]
[null,null,"電話番号","06-6762-6371","被保険者の電話番号を入力して下さい。"]
[null,null,"提出日",{"$f":"TODAY()","v":"2022-11-02"},"TODAY関数が入力されています。提出日を変更する場合、日付を入力してください。",null,{"$f":"D11+1","v":"2022-11-21"},null,{"$f":"H8","v":"2022-11-01"}]
[null,null,"保険証の番号",5402,"健康保険証の番号を入力",null,{"$f":"DAY(G7)","v":21},{"$f":"G7-G8+1","v":"2022-11-01"},{"$f":"I7+31","v":"2022-12-02"}]
[null,null,"個人番号(基礎年金番号)",123456789012,"被保険者の個人番号(基礎年金番号)を入力して下さい。",null,null,null,{"$f":"I8+31","v":"2023-01-02"}]
[null,null,"被保険者生年月日","1997-02-02","「H9.2.2」のように和暦で入力して下さい。",null,{"$f":"IF(D21>=17,D24+D35,0)","v":0}]
[null,null,"産前産後休業終了年月日","2022-11-20","「R4.11.20」のように和暦で入力して下さい。※終了日の翌日の属する月が起算月となります。",null,{"$f":"IF(D22>=17,D25+D36,0)","v":230400},null,{"$f":"SUM(G10:G12)","v":480900}]
[null,null,"子の氏名","大阪健保　整太郎","子の氏名を入力",null,{"$f":"IF(D23>=17,D26+D37,0)","v":250500},null,{"$f":"ROUNDDOWN(I11/(3-G14),0)","v":240450}]
[null,null,"子の氏名（カナ）","オオサカケンポ　セイタロウ","子の氏名（カナ）を入力",null,null,null,{"$f":"I11-D34","v":470900}]
[null,null,"子の生年月日","2022-09-25","「R4.9.25」のように和暦で入力して下さい。",null,{"$f":"COUNTIF(G10:G12,0)","v":1},null,{"$f":"ROUNDDOWN(I13/(3-G14),0)","v":235450}]
[null,null,"賃金締切日",15,"「15」のように賃金締切日を入力して下さい。"]
[null,null,"賃金支給月",1,"当月の場合は「1」翌月の場合は「2」を入力して下さい。",null,{"$f":"IF(I11=I13,I11,I13)","v":470900},{"$f":"IF(OR(ISNUMBER(D24),ISNUMBER(D25),ISNUMBER(D26)),G16/(3-G14),0)","v":235450},{"$f":"IF(AND(1<=H16,93000>H16),IF(AND(1<=H16,63000>H16),58,IF(AND(63000<=H16,73000>H16),68,IF(AND(73000<=H16,83000>H16),78,IF(AND(83000<=H16,93000>H16),88)))),\"\")","v":""}]
[null,null,"賃金支給日",25,"「25」のように賃金支払日を入力して下さい。",null,null,{"$f":"IF(AND(1<=H16,93000>H16),I16,IF(AND(93000<=H16,175000>H16),I17,IF(AND(175000<=H16,350000>H16),I18,IF(AND(350000<=H16,635000>H16),I19,IF(AND(635000<=H16,1005000>H16),I20,IF(AND(1005000<=H16),I21,\"\"))))))","v":240},{"$f":"IF(AND(93000<=H16,130000>H16),IF(AND(93000<=H16,101000>H16),98,IF(AND(101000<=H16,107000>H16),104,IF(AND(107000<=H16,114000>H16),110,IF(AND(114000<=H16,122000>H16),118,IF(AND(122000<=H16,130000>H16),126,\"\"))))),IF(AND(130000<=H16,138000>H16),134,IF(AND(138000<=H16,146000>H16),142,IF(AND(146000<=H16,155000>H16),150,IF(AND(155000<=H16,165000>H16),160,IF(AND(165000<=H16,175000>H16),170,\"\"))))))","v":""}]
[null,null,"健保の従前の標準報酬月額",300,"「1390」・「58」等健保の従前の標準報酬月額を入力して下さい。",null,null,{"$f":"IF(AND(1<=H16,175000>H16),I22,IF(AND(175000<=H16,350000>H16),I23,IF(350000<=H16,I24,\"\")))","v":240},{"$f":"IF(AND(175000<=H16,250000>H16),IF(AND(175000<=H16,185000>H16),180,IF(AND(185000<=H16,195000>H16),190,IF(AND(195000<=H16,210000>H16),200,IF(AND(210000<=H16,230000>H16),220,IF(AND(230000<=H16,250000>H16),240,\"\"))))),IF(AND(250000<=H16,270000>H16),260,IF(AND(270000<=H16,290000>H16),280,IF(AND(290000<=H16,310000>H16),300,IF(AND(310000<=H16,330000>H16),320,IF(AND(330000<=H16,350000>H16),340,\"\"))))))","v":240}]
[null,null,"従前の改定年月日","2022-09-01","従前の改定月を「R4.9.1」と和暦で入力して下さい。",null,"健保の従前",null,{"$f":"IF(AND(350000<=H16,485000>H16),IF(AND(350000<=H16,370000>H16),360,IF(AND(370000<=H16,395000>H16),380,IF(AND(395000<=H16,425000>H16),410,IF(AND(425000<=H16,455000>H16),440,IF(AND(455000<=H16,485000>H16),470,\"\"))))),IF(AND(485000<=H16,515000>H16),500,IF(AND(515000<=H16,545000>H16),530,IF(AND(545000<=H16,575000>H16),560,IF(AND(575000<=H16,605000>H16),590,IF(AND(605000<=H16,635000>H16),620,\"\"))))))","v":""}]
[null,null,"昇給降給の別",2,"昇給の場合は「1」降給の場合は「2」を入力して下さい。",null,{"$f":"IF(ISNUMBER(D18),D18,\"\")","v":300},null,{"$f":"IF(AND(635000<=H16,810000>H16),IF(AND(635000<=H16,665000>H16),650,IF(AND(665000<=H16,695000>H16),680,IF(AND(695000<=H16,730000>H16),710,IF(AND(730000<=H16,770000>H16),750,IF(AND(770000<=H16,810000>H16),790,\"\"))))),IF(AND(810000<=H16,855000>H16),830,IF(AND(855000<=H16,905000>H16),880,IF(AND(905000<=H16,955000>H16),930,IF(AND(955000<=H16,1005000>H16),980,\"\")))))","v":""}]
[null,null,{"$f":"I7","v":"2022-11-01"},0,"上記3ヶ月の支払基礎日数を入力(31日の場合「31」と入力)\n月給制の場合は〆から〆の日数を入力\n日給、パートの場合は出勤日数を入力\n0日の場合「0」を入力",null,"厚年の従前",null,{"$f":"IF(AND(1005000<=H16,1055000>H16),1030,IF(AND(1055000<=H16,1115000>H16),1090,IF(AND(1115000<=H16,1175000>H16),1150,IF(AND(1175000<=H16,1235000>H16),1210,IF(AND(1235000<=H16,1295000>H16),1270,IF(AND(1295000<=H16,1355000>H16),1330,IF(1355000<=H16,1390,\"\")))))))","v":""}]
[null,null,{"$f":"I8","v":"2022-12-02"},25,null,null,{"$f":"IF(D18<58,0,IF(D18<88,88,IF(D18>620,620,D18)))","v":300},null,{"$f":"IF(AND(1<=H16,130000>H16),IF(AND(1<=H16,93000>H16),88,IF(AND(93000<=H16,101000>H16),98,IF(AND(101000<=H16,107000>H16),104,IF(AND(107000<=H16,114000>H16),110,IF(AND(114000<=H16,122000>H16),118,IF(AND(122000<=H16,130000>H16),126,\"\")))))),IF(AND(130000<=H16,138000>H16),134,IF(AND(138000<=H16,146000>H16),142,IF(AND(146000<=H16,155000>H16),150,IF(AND(155000<=H16,165000>H16),\"160\",IF(AND(165000<=H16,175000>H16),170,\"\"))))))","v":""}]
[null,null,{"$f":"I9","v":"2023-01-02"},31,null,null,null,null,{"$f":"IF(AND(175000<=H16,250000>H16),IF(AND(175000<=H16,185000>H16),180,IF(AND(185000<=H16,195000>H16),190,IF(AND(195000<=H16,210000>H16),200,IF(AND(210000<=H16,230000>H16),220,IF(AND(230000<=H16,250000>H16),240,\"\"))))),IF(AND(250000<=H16,270000>H16),260,IF(AND(270000<=H16,290000>H16),280,IF(AND(290000<=H16,310000>H16),300,IF(AND(310000<=H16,330000>H16),320,IF(AND(330000<=H16,350000>H16),340,\"\"))))))","v":240}]
[null,null,{"$f":"I7","v":"2022-11-01"},0,"各月の金銭による報酬を入力\n300,000円の場合「300000」と入力。\n0円の場合「0」を入力。",null,null,null,{"$f":"IF(AND(350000<=H16,485000>H16),IF(AND(350000<=H16,370000>H16),360,IF(AND(370000<=H16,395000>H16),380,IF(AND(395000<=H16,425000>H16),410,IF(AND(425000<=H16,455000>H16),440,IF(AND(455000<=H16,485000>H16),470,\"\"))))),IF(AND(485000<=H16,515000>H16),500,IF(AND(515000<=H16,545000>H16),530,IF(AND(545000<=H16,575000>H16),560,IF(AND(575000<=H16,605000>H16),590,IF(AND(605000<=H16),620,\"\"))))))","v":""}]
[null,null,{"$f":"I8","v":"2022-12-02"},230000]
[null,null,{"$f":"I9","v":"2023-01-02"},250000,null,null,1,"当月"]
[null,"該当する場合入力","備考1",1,"70歳以上被用者に該当する場合「1」を入力",null,2,"翌月",{"$f":"IF(ISNUMBER(D16),VLOOKUP(D16,G26:H27,2,0),\"\")","v":"当月"}]
[null,null,"備考2",2,"二以上事業所勤務者に該当する場合は「2」を入力"]
[null,null,"備考3",3,"短時間労働者(特定適用事業所）に該当する場合は「3」を入力"]
[null,null,"備考4",4,"パートの場合は「4」を入力"]
[null,null,"備考5",5,"その他の事由がある場合は「5」を入力"]
[null,null,null,"無し","「5」を入力した場合その事由を入力"]
[null,null,"遡及支払がある場合","2023-01-01","遡及支払のある月を「R5.1.1」と和暦で入力して下さい。"]
[null,null,null,10000,"遡及支払の金額を入力"]
[null,null,{"$f":"I7","v":"2022-11-01"},300,"各月に現物で支給した場合その額を入力\n基本ブランクで結構です"]
[null,null,{"$f":"I8","v":"2022-12-02"},400]
[null,null,{"$f":"I9","v":"2023-01-02"},500]
[null,null,"育休終了後月額改定の申出",null,"改定を申し出ないときは「1」を入力。基本ブランクで結構です。"]
[null,null,"月変該当の確認",null,"月変に該当しない場合「1」を入力。基本ブランクで結構です。"]

{"sheet":"健保正","index":3,"n_rows":215,"n_cols":130,"rows_kept":215,"cut":false,"hidden":false,"merged":[[69,7,73,11],[69,14,72,67],[73,14,77,67],[146,92,151,94],[146,95,151,112],[146,113,151,115],[155,16,160,21],[155,22,160,24],[155,25,160,30],[155,31,160,33],[155,34,160,51],[155,52,160,54],[155,55,160,70],[155,71,160,73],[155,74,160,91],[155,92,160,94],[155,95,160,112],[155,113,160,115],[146,16,151,21],[146,22,151,24],[146,25,151,30],[146,31,151,33],[146,34,151,51],[146,52,151,54],[161,74,164,77],[161,78,164,84],[165,74,169,84],[143,74,145,94],[146,55,151,70],[146,71,151,73],[146,74,151,91],[137,52,142,54],[137,25,142,30],[137,34,142,51],[137,71,142,73],[137,55,142,70],[137,92,142,94],[134,55,136,73],[134,74,136,94],[134,95,136,98],[134,99,136,115],[143,95,145,98],[143,99,145,115],[152,95,154,98],[152,99,154,115],[143,16,145,24],[143,25,145,33],[143,34,145,54],[152,74,154,94],[161,16,169,18],[161,19,169,25],[179,126,187,127],[179,105,187,125],[134,116,139,127],[156,116,159,127],[175,116,178,127],[140,116,143,127],[144,116,155,127],[161,94,169,113],[179,76,187,91],[179,92,187,94],[179,95,187,104],[143,55,145,73],[137,113,142,115],[137,74,142,91],[137,95,142,112],[160,116,163,127],[164,116,174,127],[170,76,178,115],[134,16,136,24],[134,25,136,33],[134,34,136,54],[179,5,182,8],[179,9,182,15],[179,16,187,18],[179,19,187,34],[179,35,187,37],[179,38,187,53],[179,54,187,56],[179,57,187,72],[179,73,187,75],[183,5,187,15],[140,5,160,15],[165,5,169,15],[161,114,169,115],[55,131,64,139],[55,71,64,130],[15,0,53,4],[9,0,12,27],[20,105,23,139],[24,105,52,139],[152,16,154,24],[152,25,154,33],[152,34,154,54],[152,55,154,73],[161,85,169,86],[161,87,169,91],[161,92,169,93],[50,71,54,101],[47,5,47,15],[48,5,53,15],[48,16,53,69],[20,5,24,15],[20,16,22,69],[23,16,25,18],[23,19,25,31],[170,5,173,8],[170,9,173,15],[174,5,178,15],[170,35,173,38],[173,73,178,75],[170,39,173,45],[174,35,178,45],[170,46,172,57],[173,46,178,54],[173,55,178,57],[170,18,178,34],[0,31,8,73],[0,13,8,30],[0,129,2,139],[3,74,12,84],[3,85,12,95],[3,96,12,106],[3,107,12,117],[3,118,12,128],[0,74,2,84],[0,85,2,95],[0,96,2,106],[0,107,2,117],[0,118,2,128],[3,129,12,139],[23,32,25,69],[15,5,18,15],[15,16,18,23],[34,5,39,15],[34,16,39,69],[40,5,40,15],[40,16,40,69],[41,5,46,15],[41,16,46,61],[41,62,46,69],[25,5,30,15],[26,16,32,69],[31,5,33,15],[33,16,33,69],[47,16,47,69],[90,5,94,11],[161,60,169,61],[161,62,169,73],[134,5,139,8],[134,9,139,15],[188,5,191,8],[188,9,191,15],[192,5,196,15],[190,56,194,60],[190,63,194,84],[188,54,196,55],[188,61,196,62],[188,56,189,60],[195,56,196,60],[188,63,189,84],[195,63,196,84],[137,22,142,24],[137,16,142,21],[137,31,142,33],[173,58,178,66],[173,67,178,72],[170,58,172,75],[170,16,178,17],[188,85,196,127],[188,16,196,53],[98,5,105,8],[98,9,105,20],[98,21,105,44],[98,45,105,66],[98,67,105,70],[98,71,105,82],[116,5,125,8],[116,9,125,20],[116,21,118,27],[116,28,118,66],[116,67,125,70],[116,71,125,82],[161,55,169,59],[161,26,169,29],[161,30,169,32],[161,33,169,39],[161,40,169,43],[161,5,164,8],[161,44,164,47],[161,48,164,54],[165,44,169,54],[161,9,164,15],[106,5,115,8],[106,9,115,20],[106,21,108,27],[106,28,108,66],[106,67,115,70],[106,71,115,82],[106,83,115,127],[109,21,115,27],[109,28,115,66],[211,5,213,137],[203,5,210,137],[214,5,222,137],[98,0,196,4],[79,5,82,36],[83,5,87,11],[90,12,94,55],[90,56,94,59],[90,67,94,73],[83,12,87,124],[68,0,96,4],[90,74,94,114],[69,94,73,124],[200,1,202,4],[200,5,202,137],[211,1,213,4],[116,83,125,127],[119,21,125,27],[119,28,125,66],[126,5,133,8],[126,9,133,20],[126,21,133,66],[126,67,133,127],[98,83,105,127]]}
[null,null,null,null,null,null,null,null,null,null,null,null,null,"健康保険",null,null,null,null,null,null,null,null,null,null,null,null,null,null,null,null,null,"産前産後休業終了時\n報酬月額変更届",null,null,null,null,null,null,null,null,null,null,null,null,null,null,null,null,null,null,null,null,null,null,null,null,null,null,null,null,null,null,null,null,null,null,null,null,null,null,null,null,null,null,"常務理事",null,null,null,null,null,null,null,null,null,null,"事務長",null,null,null,null,null,null,null,null,null,null,"部長",null,null,null,null,null,null,null,null,null,null,"課長",null,null,null,null,null,null,null,null,null,null,"係長",null,null,null,null,null,null,null,null,null,null,"係"]
[]
[]
[]
[]
[]
[]
[]
[]
[{"$f":"基本情報登録!C2","v":"2022-11-02"}]
[]
[]
[]
[]
[]
["提出者記入欄",null,null,null,null,"記号",null,null,null,null,null,null,null,null,null,null,{"$f":"基本情報登録!C6","v":"532"}]
[]
[]
[]
[]
[null,null,null,null,null,null,null,null,null,null,null,null,null,null,null,null,"届書記入の個人番号に誤りがないことを確認しました。",null,null,null,null,null,null,null,null,null,null,null,null,null,null,null,null,null,null,null,null,null,null,null,null,null,null,null,null,null,null,null,null,null,null,null,null,null,null,null,null,null,null,null,null,null,null,null,null,null,null,null,null,null,null,null,null,null,null,null,null,null,null,null,null,null,null,null,null,null,null,null,null,null,null,null,null,null,null,null,null,null,null,null,null,null,null,null,null,"受付印"]
[]
[]
[null,null,null,null,null,null,null,null,null,null,null,null,null,null,null,null,"〒",null,null,{"$f":"基本情報登録!C7","v":"542-0066"}]
[]
[null,null,null,null,null,"事業所\n所在地"]
[null,null,null,null,null,null,null,null,null,null,null,null,null,null,null,null,{"$f":"基本情報登録!C8","v":"大阪府大阪市中央区瓦屋町2-3-1"}]
[]
[]
[]
[]
[]
[]
[]
[null,null,null,null,null,"事業所\n名称",null,null,null,null,null,null,null,null,null,null,{"$f":"基本情報登録!C9","v":"大阪自動車整備健康保険組合"}]
[]
[]
[]
[]
[]
[]
[null,null,null,null,null,"事業主\n氏名",null,null,null,null,null,null,null,null,null,null,{"$f":"基本情報登録!C10","v":"理事長　健保　太郎"}]
[]
[]
[]
[]
[]
[]
[null,null,null,null,null,"電話番号",null,null,null,null,null,null,null,null,null,null,{"$f":"基本情報登録!C11","v":"06-6762-6371"}]
[]
[null,null,null,null,null,null,null,null,null,null,null,null,null,null,null,null,null,null,null,null,null,null,null,null,null,null,null,null,null,null,null,null,null,null,null,null,null,null,null,null,null,null,null,null,null,null,null,null,null,null,null,null,null,null,null,null,null,null,null,null,null,null,null,null,null,null,null,null,null,null,null,"社会保険労務士記載欄"]
[]
[]
[]
[]
[]
[]
[]
[]
[]
[]
[]
[]
[]
[]
[]
[]
[]
["申出者署名欄"]
[null,null,null,null,null,null,null,{"$f":"IF(ISBLANK(入力!D38),\"✔\",\"\")","v":"✔"},null,null,null,null,null,null,"産前産後休業を終了した際の標準報酬月額の改定について申出します。",null,null,null,null,null,null,null,null,null,null,null,null,null,null,null,null,null,null,null,null,null,null,null,null,null,null,null,null,null,null,null,null,null,null,null,null,null,null,null,null,null,null,null,null,null,null,null,null,null,null,null,null,null,null,null,null,null,null,null,null,null,null,null,null,null,null,null,null,null,null,null,null,null,null,null,null,null,null,null,{"$f":"入力!D7","v":"2022-11-02"}]
[]
[]
[]
[null,null,null,null,null,null,null,null,null,null,null,null,null,null,"(健康保険法施行規則第38条の3及び厚生年金保険法施行規則第10条の2)\n※必ず□に✓してください。"]
[]
[]
[]
[]
[]
[null,null,null,null,null,"大阪自動車整備健康保険組合理事長あて"]
[]
[]
[]
[null,null,null,null,null,"住所",null,null,null,null,null,null,{"$f":"IF(ISTEXT(入力!D5),入力!D5,\"\")","v":"大阪府大阪市中央区瓦屋町2-3-1　岸和田第3ビル3階"}]
[]
[]
[]
[]
[]
[]
[null,null,null,null,null,"氏名",null,null,null,null,null,null,{"$f":"IF(ISTEXT(入力!D3),入力!D3,\"\")","v":"大阪健保　整子"},null,null,null,null,null,null,null,null,null,null,null,null,null,null,null,null,null,null,null,null,null,null,null,null,null,null,null,null,null,null,null,null,null,null,null,null,null,null,null,null,null,null,null,null,null,null,null,null,null,null,null,null,null,null,"電話",null,null,null,null,null,null,{"$f":"IF(ISTEXT(入力!D6),入力!D6,\"\")","v":"06-6762-6371"}]
[]
[]
[]
[]
[]
[]
[]
["被保険者欄",null,null,null,null,1,null,null,null,"番号",null,null,null,null,null,null,null,null,null,null,null,{"$f":"IF(ISNUMBER(入力!D8),入力!D8,\"\")","v":5402},null,null,null,null,null,null,null,null,null,null,null,null,null,null,null,null,null,null,null,null,null,null,null,null,null,null,null,null,null,null,null,null,null,null,null,null,null,null,null,null,null,null,null,null,null,2,null,null,null,"個人番号\n(基礎年金番号)"]
[]
[]
[]
[]
[]
[]
[]
[null,null,null,null,null,3,null,null,null,"被保険者氏名",null,null,null,null,null,null,null,null,null,null,null,"ﾌﾘｶﾞﾅ",null,null,null,null,null,null,{"$f":"IF(ISTEXT(入力!D4),入力!D4,\"\")","v":"オオサカケンポ　セイコ"},null,null,null,null,null,null,null,null,null,null,null,null,null,null,null,null,null,null,null,null,null,null,null,null,null,null,null,null,null,null,null,null,null,null,null,null,null,null,4,null,null,null,"被保険者\n生年月日",null,null,null,null,null,null,null,null,null,null,null,{"$f":"IF(ISNUMBER(入力!D10),入力!D10,\"\")","v":"1997-02-02"}]
[]
[]
[null,null,null,null,null,null,null,null,null,null,null,null,null,null,null,null,null,null,null,null,null,"氏名",null,null,null,null,null,null,{"$f":"IF(ISTEXT(入力!D3),入力!D3,\"\")","v":"大阪健保　整子"}]
[]
[]
[]
[]
[]
[]
[null,null,null,null,null,5,null,null,null,"子の氏名",null,null,null,null,null,null,null,null,null,null,null,"ﾌﾘｶﾞﾅ",null,null,null,null,null,null,{"$f":"IF(ISTEXT(入力!D13),入力!D13,\"\")","v":"オオサカケンポ　セイタロウ"},null,null,null,null,null,null,null,null,null,null,null,null,null,null,null,null,null,null,null,null,null,null,null,null,null,null,null,null,null,null,null,null,null,null,null,null,null,null,6,null,null,null,"子の生年月日",null,null,null,null,null,null,null,null,null,null,null,{"$f":"IF(ISNUMBER(入力!D14),入力!D14,\"\")","v":"2022-09-25"}]
[]
[]
[null,null,null,null,null,null,null,null,null,null,null,null,null,null,null,null,null,null,null,null,null,"氏名",null,null,null,null,null,null,{"$f":"IF(ISTEXT(入力!D12),入力!D12,\"\")","v":"大阪健保　整太郎"}]
[]
[]
[]
[]
[]
[]
[null,null,null,null,null,7,null,null,null,"産前産後休業終了年月日",null,null,null,null,null,null,null,null,null,null,null,{"$f":"IF(ISNUMBER(入力!D11),入力!D11,\"\")","v":"2022-11-20"}]
[]
[]
[]
[]
[]
[]
[]
[null,null,null,null,null,8,null,null,null,null,null,null,null,null,null,null,"支給月",null,null,null,null,null,null,null,null,"基礎日数",null,null,null,null,null,null,null,null,"通貨",null,null,null,null,null,null,null,null,null,null,null,null,null,null,null,null,null,null,null,null,"現物",null,null,null,null,null,null,null,null,null,null,null,null,null,null,null,null,null,null,"合計",null,null,null,null,null,null,null,null,null,null,null,null,null,null,null,null,null,null,null,null,9,null,null,null,"総計",null,null,null,null,null,null,null,null,null,null,null,null,null,null,null,null,"決定"]
[]
[]
[null,null,null,null,null,null,null,null,null,null,null,null,null,null,null,null,{"$f":"IF(ISNUMBER(入力!D11),入力!I7,\"\")","v":"2022-11-01"},null,null,null,null,null,"月",null,null,{"$f":"IF(ISNUMBER(入力!D21),入力!D21,\"\")","v":0},null,null,null,null,null,"日",null,null,{"$f":"IF(ISNUMBER(入力!D24),入力!D24,\"\")","v":0},null,null,null,null,null,null,null,null,null,null,null,null,null,null,null,null,null,"円",null,null,{"$f":"IF(ISNUMBER(入力!D35),入力!D35,\"\")","v":300},null,null,null,null,null,null,null,null,null,null,null,null,null,null,null,"円",null,null,{"$f":"IF(OR(ISNUMBER(入力!D24),ISNUMBER(入力!D25),ISNUMBER(入力!D26)),入力!G10,\"\")","v":0},null,null,null,null,null,null,null,null,null,null,null,null,null,null,null,null,null,"円",null,null,{"$f":"IF(OR(ISNUMBER(入力!D24),ISNUMBER(入力!D25),ISNUMBER(入力!D26)),入力!I11,\"\")","v":480900},null,null,null,null,null,null,null,null,null,null,null,null,null,null,null,null,null,"円"]
[]
[]
[null,null,null,null,null,"給与\n支給月\n及び\n報酬月額",null,null,null,null,null,null,null,null,null,null,null,null,null,null,null,null,null,null,null,null,null,null,null,null,null,null,null,null,null,null,null,null,null,null,null,null,null,null,null,null,null,null,null,null,null,null,null,null,null,null,null,null,null,null,null,null,null,null,null,null,null,null,null,null,null,null,null,null,null,null,null,null,null,null,null,null,null,null,null,null,null,null,null,null,null,null,null,null,null,null,null,null,null,null,null,null,null,null,null,null,null,null,null,null,null,null,null,null,null,null,"健保"]
[]
[]
[null,null,null,null,null,null,null,null,null,null,null,null,null,null,null,null,"支給月",null,null,null,null,null,null,null,null,"基礎日数",null,null,null,null,null,null,null,null,"通貨",null,null,null,null,null,null,null,null,null,null,null,null,null,null,null,null,null,null,null,null,"現物",null,null,null,null,null,null,null,null,null,null,null,null,null,null,null,null,null,null,"合計",null,null,null,null,null,null,null,null,null,null,null,null,null,null,null,null,null,null,null,null,10,null,null,null,"平均額"]
[null,null,null,null,null,null,null,null,null,null,null,null,null,null,null,null,null,null,null,null,null,null,null,null,null,null,null,null,null,null,null,null,null,null,null,null,null,null,null,null,null,null,null,null,null,null,null,null,null,null,null,null,null,null,null,null,null,null,null,null,null,null,null,null,null,null,null,null,null,null,null,null,null,null,null,null,null,null,null,null,null,null,null,null,null,null,null,null,null,null,null,null,null,null,null,null,null,null,null,null,null,null,null,null,null,null,null,null,null,null,null,null,null,null,null,null,{"$f":"IF(OR(ISNUMBER(入力!D24),ISNUMBER(入力!D25),ISNUMBER(入力!D26)),入力!H17,\"\")","v":240}]
[]
[null,null,null,null,null,null,null,null,null,null,null,null,null,null,null,null,{"$f":"IF(ISNUMBER(入力!D11),入力!I8,\"\")","v":"2022-12-02"},null,null,null,null,null,"月",null,null,{"$f":"IF(ISNUMBER(入力!D22),入力!D22,\"\")","v":25},null,null,null,null,null,"日",null,null,{"$f":"IF(ISNUMBER(入力!D25),入力!D25,\"\")","v":230000},null,null,null,null,null,null,null,null,null,null,null,null,null,null,null,null,null,"円",null,null,{"$f":"IF(ISNUMBER(入力!D36),入力!D36,\"\")","v":400},null,null,null,null,null,null,null,null,null,null,null,null,null,null,null,"円",null,null,{"$f":"IF(OR(ISNUMBER(入力!D24),ISNUMBER(入力!D25),ISNUMBER(入力!D26)),入力!G11,\"\")","v":230400},null,null,null,null,null,null,null,null,null,null,null,null,null,null,null,null,null,"円",null,null,{"$f":"IF(OR(ISNUMBER(入力!D24),ISNUMBER(入力!D25),ISNUMBER(入力!D26)),入力!I12,\"\")","v":240450},null,null,null,null,null,null,null,null,null,null,null,null,null,null,null,null,null,"円"]
[]
[]
[]
[]
[]
[null,null,null,null,null,null,null,null,null,null,null,null,null,null,null,null,"支給月",null,null,null,null,null,null,null,null,"基礎日数",null,null,null,null,null,null,null,null,"通貨",null,null,null,null,null,null,null,null,null,null,null,null,null,null,null,null,null,null,null,null,"現物",null,null,null,null,null,null,null,null,null,null,null,null,null,null,null,null,null,null,"合計",null,null,null,null,null,null,null,null,null,null,null,null,null,null,null,null,null,null,null,null,11,null,null,null,"修正平均額"]
[]
[]
[null,null,null,null,null,null,null,null,null,null,null,null,null,null,null,null,{"$f":"IF(ISNUMBER(入力!D11),入力!I9,\"\")","v":"2023-01-02"},null,null,null,null,null,"月",null,null,{"$f":"IF(ISNUMBER(入力!D23),入力!D23,\"\")","v":31},null,null,null,null,null,"日",null,null,{"$f":"IF(ISNUMBER(入力!D26),入力!D26,\"\")","v":250000},null,null,null,null,null,null,null,null,null,null,null,null,null,null,null,null,null,"円",null,null,{"$f":"IF(ISNUMBER(入力!D37),入力!D37,\"\")","v":500},null,null,null,null,null,null,null,null,null,null,null,null,null,null,null,"円",null,null,{"$f":"IF(OR(ISNUMBER(入力!D24),ISNUMBER(入力!D25),ISNUMBER(入力!D26)),入力!G12,\"\")","v":250500},null,null,null,null,null,null,null,null,null,null,null,null,null,null,null,null,null,"円",null,null,{"$f":"IF(ISNUMBER(入力!D34),入力!I14,\"\")","v":235450},null,null,null,null,null,null,null,null,null,null,null,null,null,null,null,null,null,"円"]
[null,null,null,null,null,null,null,null,null,null,null,null,null,null,null,null,null,null,null,null,null,null,null,null,null,null,null,null,null,null,null,null,null,null,null,null,null,null,null,null,null,null,null,null,null,null,null,null,null,null,null,null,null,null,null,null,null,null,null,null,null,null,null,null,null,null,null,null,null,null,null,null,null,null,null,null,null,null,null,null,null,null,null,null,null,null,null,null,null,null,null,null,null,null,null,null,null,null,null,null,null,null,null,null,null,null,null,null,null,null,null,null,null,null,null,null,"千円"]
[]
[]
[]
[null,null,null,null,null,null,null,null,null,null,null,null,null,null,null,null,null,null,null,null,null,null,null,null,null,null,null,null,null,null,null,null,null,null,null,null,null,null,null,null,null,null,null,null,null,null,null,null,null,null,null,null,null,null,null,null,null,null,null,null,null,null,null,null,null,null,null,null,null,null,null,null,null,null,null,null,null,null,null,null,null,null,null,null,null,null,null,null,null,null,null,null,null,null,null,null,null,null,null,null,null,null,null,null,null,null,null,null,null,null,null,null,null,null,null,null,"年金"]
[null,null,null,null,null,12,null,null,null,null,null,null,null,null,null,null,"健",null,null,{"$f":"IF(ISNUMBER(入力!D18),入力!G20,\"\")","v":300},null,null,null,null,null,null,"千円",null,null,null,"年",null,null,{"$f":"IF(ISNUMBER(入力!D18),入力!G22,\"\")","v":300},null,null,null,null,null,null,"千円",null,null,null,13,null,null,null,null,null,null,null,null,null,null,{"$f":"IF(ISNUMBER(入力!D11),入力!D11,\"\")","v":"2022-11-20"},null,null,null,null,"月",null,{"$f":"IF(ISNUMBER(入力!D20),入力!I5,\"\")","v":"2.降給"},null,null,null,null,null,null,null,null,null,null,null,14,null,null,null,null,null,null,null,null,null,null,null,null,{"$f":"IF(ISNUMBER(入力!D33),入力!D33,\"\")","v":"2023-01-01"},null,null,null,null,"月",null,{"$f":"IF(ISNUMBER(入力!D34),入力!D34,\"\")","v":10000},null,null,null,null,null,null,null,null,null,null,null,null,null,null,null,null,null,null,null,"円"]
[]
[]
[null,null,null,null,null,null,null,null,null,null,null,null,null,null,null,null,null,null,null,null,null,null,null,null,null,null,null,null,null,null,null,null,null,null,null,null,null,null,null,null,null,null,null,null,null,null,null,null,null,null,null,null,null,null,null,null,null,null,null,null,null,null,null,null,null,null,null,null,null,null,null,null,null,null,null,null,null,null,null,null,null,null,null,null,null,null,null,null,null,null,null,null,null,null,null,null,null,null,null,null,null,null,null,null,null,null,null,null,null,null,null,null,null,null,null,null,{"$f":"IF(OR(ISNUMBER(入力!D24),ISNUMBER(入力!D25),ISNUMBER(入力!D26)),入力!H18,\"\")","v":240}]
[null,null,null,null,null,"従前標準\n報酬月額",null,null,null,null,null,null,null,null,null,null,null,null,null,null,null,null,null,null,null,null,null,null,null,null,null,null,null,null,null,null,null,null,null,null,null,null,null,null,"昇給\n降給",null,null,null,null,null,null,null,null,null,null,null,null,null,null,null,null,null,null,null,null,null,null,null,null,null,null,null,null,null,"遡及支払額"]
[]
[]
[]
[]
[null,null,null,null,null,15,null,null,null,null,null,null,null,null,null,null,null,null,{"$f":"IF(ISNUMBER(入力!D11),入力!I3,\"\")","v":"2023-02-02"},null,null,null,null,null,null,null,null,null,null,null,null,null,null,null,null,16,null,null,null,null,null,null,null,null,null,null,"締切日",null,null,null,null,null,null,null,null,null,null,null,"支払日"]
[]
[]
[null,null,null,null,null,null,null,null,null,null,null,null,null,null,null,null,null,null,null,null,null,null,null,null,null,null,null,null,null,null,null,null,null,null,null,null,null,null,null,null,null,null,null,null,null,null,{"$f":"IF(ISNUMBER(入力!D15),入力!D15,\"\")","v":15},null,null,null,null,null,null,null,null,"日",null,null,{"$f":"IF(ISNUMBER(入力!D16),入力!I27,\"\")","v":"当月"},null,null,null,null,null,null,null,null,{"$f":"IF(ISNUMBER(入力!D17),入力!D17,\"\")","v":25},null,null,null,null,null,"日"]
[null,null,null,null,null,"改定年月",null,null,null,null,null,null,null,null,null,null,null,null,null,null,null,null,null,null,null,null,null,null,null,null,null,null,null,null,null,"給料締切日・支払日"]
[null,null,null,null,null,null,null,null,null,null,null,null,null,null,null,null,null,null,null,null,null,null,null,null,null,null,null,null,null,null,null,null,null,null,null,null,null,null,null,null,null,null,null,null,null,null,null,null,null,null,null,null,null,null,null,null,null,null,null,null,null,null,null,null,null,null,null,null,null,null,null,null,null,null,null,null,null,null,null,null,null,null,null,null,null,null,null,null,null,null,null,null,null,null,null,null,null,null,null,null,null,null,null,null,null,null,null,null,null,null,null,null,null,null,null,null,"千円"]
[]
[]
[]
[null,null,null,null,null,17,null,null,null,null,null,null,null,null,null,null,{"$f":"IF((入力!D27)=1,\"1.\",\"\")","v":"1."},null,null,{"$f":"IF((入力!D27)=1,\"70歳以上被用者\",\"\")","v":"70歳以上被用者"},null,null,null,null,null,null,null,null,null,null,null,null,null,null,null,{"$f":"IF((入力!D28)=2,\"2.\",\"\")","v":"2."},null,null,{"$f":"IF((入力!D28)=2,\"二以上勤務被保険者\",\"\")","v":"二以上勤務被保険者"},null,null,null,null,null,null,null,null,null,null,null,null,null,null,null,{"$f":"IF((入力!D29)=3,\"3.\",\"\")","v":"3."},null,null,{"$f":"IF((入力!D29)=3,\"短時間労働者\",\"\")","v":"短時間労働者"},null,null,null,null,null,null,null,null,null,null,null,null,null,null,null,{"$f":"IF((入力!D30)=4,\"4.\",\"\")","v":"4."},null,null,{"$f":"IF((入力!D30)=4,\"パート\",\"\")","v":"パート"},null,null,null,null,null,null,null,null,null,null,null,null,null,null,null,{"$f":"IF((入力!D31)=5,\"5.\",\"\")","v":"5."},null,null,{"$f":"IF((入力!D31)=5,\"その他(\",\"\")","v":"その他("},null,null,null,null,null,null,null,null,null,{"$f":"IF((入力!D31)=5,入力!D32,\"\")","v":"無し"},null,null,null,null,null,null,null,null,null,null,null,null,null,null,null,null,null,null,null,null,{"$f":"IF((入力!D31)=5,\")\",\"\")","v":")"}]
[]
[]
[]
[null,null,null,null,null,"備考"]
[]
[]
[]
[]
[null,null,null,null,null,18,null,null,null,null,null,null,null,null,null,null,"産前産後休業を終了した日の翌日に引き続いて、育児休業等を開始していませんか。",null,null,null,null,null,null,null,null,null,null,null,null,null,null,null,null,null,null,null,null,null,null,null,null,null,null,null,null,null,null,null,null,null,null,null,null,null,null,null,null,null,null,null,null,null,null,null,null,null,null,null,null,null,null,null,null,null,null,null,null,null,null,null,null,null,null,null,null,"※産前産後休業を終了した日の翌日に引き続いて育児休業等を開始した場合は、この申出は出来ません。"]
[]
[null,null,null,null,null,null,null,null,null,null,null,null,null,null,null,null,null,null,null,null,null,null,null,null,null,null,null,null,null,null,null,null,null,null,null,null,null,null,null,null,null,null,null,null,null,null,null,null,null,null,null,null,null,null,null,null,{"$f":"IF(ISBLANK(入力!D39),\"✔\",\"\")","v":"✔"},null,null,null,null,null,null,"開始していません"]
[]
[null,null,null,null,null,"月変該当\nの確認"]
[]
[]
[]
[]
[]
[]
[]
[null,"○",null,null,null,"産前産後休業終了時月額変更届とは"]
[]
[]
[null,null,null,null,null,"産前産後休業終了日に当該産前産後休業に係る子を養育している被保険者は、一定の条件を満たす場合、随時改定に該当しなくても、産前産後休業終了日の翌日が属する月以後3ヶ月間に受けた報酬の平均値に基づき、4ヶ月目の標準報酬月額から改定することができます。ただし、産前産後休業を終了した翌日に引き続いて育児休業等を開始した場合は、この申出はできません、"]
[]
[]
[]
[]
[]
[]
[]
[null,"○",null,null,null,"変更後の標準報酬月額が以前より下がった方へ"]
[]
[]
[null,null,null,null,null,"3歳未満の子を養育する被保険者または被保険者であった者で、養育期間中の各月の標準報酬月額が、養育開始月の前月の標準報酬月額を下回る場合、「養育期間の従前標準報酬月額みなし措置」という制度をご利用いただけます。この申出をいただきますと、将来の年金額の計算時には養育期間以前の標準報酬月額を用いることができますので、「産前産後休業終了時報酬月額変更届」とあわせて、「養育期間標準報酬月額特例申出書」を提出して下さい。"]

{"sheet":"健保副","index":4,"n_rows":215,"n_cols":127,"rows_kept":215,"cut":false,"hidden":false,"merged":[[39,76,43,132],[41,5,46,15],[1,14,7,114],[20,16,22,69],[23,16,25,18],[23,19,25,31],[23,32,25,69],[25,5,30,15],[26,16,32,69],[31,5,33,15],[33,16,33,69],[26,76,29,135],[41,62,46,69],[30,76,33,135],[47,5,47,15],[47,16,47,69],[48,5,53,15],[48,16,53,69],[9,0,12,27],[15,0,53,4],[15,5,18,15],[15,16,18,23],[20,5,24,15],[41,16,46,61],[34,5,39,15],[34,16,39,69],[40,5,40,15],[40,16,40,69],[68,0,96,4],[69,94,73,124],[79,5,82,36],[83,5,87,11],[83,12,87,124],[90,5,94,11],[90,12,94,55],[90,56,94,59],[90,67,94,73],[90,74,94,114],[69,7,73,11],[69,14,72,67],[73,14,77,67],[116,67,125,70],[116,71,125,82],[116,83,125,127],[119,21,125,27],[119,28,125,66],[98,67,105,70],[98,71,105,82],[98,83,105,127],[106,5,115,8],[106,9,115,20],[106,21,108,27],[106,28,108,66],[106,67,115,70],[106,71,115,82],[106,83,115,127],[109,21,115,27],[109,28,115,66],[98,5,105,8],[98,9,105,20],[98,21,105,44],[98,45,105,66],[116,5,125,8],[116,9,125,20],[116,21,118,27],[137,95,142,112],[137,113,142,115],[126,67,133,127],[134,5,139,8],[134,9,139,15],[134,16,136,24],[134,25,136,33],[134,34,136,54],[134,55,136,73],[134,74,136,94],[134,95,136,98],[134,99,136,115],[134,116,139,127],[137,16,142,21],[137,22,142,24],[137,25,142,30],[137,31,142,33],[137,34,142,51],[126,5,133,8],[126,9,133,20],[126,21,133,66],[137,52,142,54],[137,55,142,70],[140,5,160,15],[146,71,151,73],[146,74,151,91],[146,92,151,94],[146,95,151,112],[146,113,151,115],[140,116,143,127],[143,16,145,24],[143,25,145,33],[143,34,145,54],[143,55,145,73],[143,74,145,94],[143,95,145,98],[143,99,145,115],[144,116,155,127],[146,16,151,21],[146,22,151,24],[146,25,151,30],[146,31,151,33],[146,34,151,51],[146,52,151,54],[146,55,151,70],[137,71,142,73],[137,74,142,91],[137,92,142,94],[152,99,154,115],[155,16,160,21],[155,22,160,24],[155,25,160,30],[155,31,160,33],[155,34,160,51],[155,52,160,54],[155,55,160,70],[155,71,160,73],[155,74,160,91],[155,92,160,94],[155,95,160,112],[155,113,160,115],[152,25,154,33],[152,34,154,54],[152,55,154,73],[152,74,154,94],[152,95,154,98],[152,16,154,24],[161,48,164,54],[161,55,169,59],[161,60,169,61],[161,62,169,73],[161,74,164,77],[161,114,169,115],[164,116,174,127],[165,5,169,15],[165,44,169,54],[165,74,169,84],[170,5,173,8],[170,9,173,15],[170,16,178,17],[161,5,164,8],[161,9,164,15],[161,16,169,18],[161,19,169,25],[161,26,169,29],[161,30,169,32],[161,33,169,39],[161,40,169,43],[161,44,164,47],[179,57,187,72],[179,73,187,75],[161,78,164,84],[161,85,169,86],[161,87,169,91],[161,92,169,93],[161,94,169,113],[156,116,159,127],[160,116,163,127],[116,28,118,66],[175,116,178,127],[179,95,187,104],[179,105,187,125],[179,126,187,127],[183,5,187,15],[173,58,178,66],[173,67,178,72],[173,73,178,75],[174,5,178,15],[174,35,178,45],[170,18,178,34],[170,35,173,38],[170,39,173,45],[170,46,172,57],[170,58,172,75],[170,76,178,115],[173,46,178,54],[173,55,178,57],[179,16,187,18],[179,19,187,34],[179,35,187,37],[179,38,187,53],[179,54,187,56],[179,5,182,8],[179,9,182,15],[179,76,187,91],[179,92,187,94],[214,5,222,137],[200,1,202,4],[200,5,202,137],[203,5,210,137],[211,1,213,4],[211,5,213,137],[188,61,196,62],[188,63,189,84],[188,85,196,127],[190,56,194,60],[190,63,194,84],[195,56,196,60],[195,63,196,84],[188,5,191,8],[188,9,191,15],[188,16,196,53],[188,54,196,55],[188,56,189,60],[192,5,196,15],[98,0,196,4]]}
[]
[null,null,null,null,null,null,null,null,null,null,null,null,null,null,"健康保険　産前産後休業終了時報酬月額改定通知書"]
[]
[]
[]
[]
[]
[]
[]
[{"$f":"基本情報登録!C2","v":"2022-11-02"}]
[]
[]
[]
[]
[]
["提出者記入欄",null,null,null,null,"記号",null,null,null,null,null,null,null,null,null,null,{"$f":"基本情報登録!C6","v":"532"}]
[]
[]
[]
[]
[]
[]
[]
[null,null,null,null,null,null,null,null,null,null,null,null,null,null,null,null,"〒",null,null,{"$f":"基本情報登録!C7","v":"542-0066"}]
[]
[null,null,null,null,null,"事業所\n所在地"]
[null,null,null,null,null,null,null,null,null,null,null,null,null,null,null,null,{"$f":"基本情報登録!C8","v":"大阪府大阪市中央区瓦屋町2-3-1"},null,null,null,null,null,null,null,null,null,null,null,null,null,null,null,null,null,null,null,null,null,null,null,null,null,null,null,null,null,null,null,null,null,null,null,null,null,null,null,null,null,null,null,null,null,null,null,null,null,null,null,null,null,null,null,null,null,null,null,"下記のとおり標準報酬が決定されたので通知します。"]
[]
[]
[]
[]
[]
[]
[]
[null,null,null,null,null,"事業所\n名称",null,null,null,null,null,null,null,null,null,null,{"$f":"基本情報登録!C9","v":"大阪自動車整備健康保険組合"}]
[]
[]
[]
[]
[null,null,null,null,null,null,null,null,null,null,null,null,null,null,null,null,null,null,null,null,null,null,null,null,null,null,null,null,null,null,null,null,null,null,null,null,null,null,null,null,null,null,null,null,null,null,null,null,null,null,null,null,null,null,null,null,null,null,null,null,null,null,null,null,null,null,null,null,null,null,null,null,null,null,null,null,"大阪自動車整備健康保険組合理事長"]
[]
[null,null,null,null,null,"事業主\n氏名",null,null,null,null,null,null,null,null,null,null,{"$f":"基本情報登録!C10","v":"理事長　健保　太郎"},null,null,null,null,null,null,null,null,null,null,null,null,null,null,null,null,null,null,null,null,null,null,null,null,null,null,null,null,null,null,null,null,null,null,null,null,null,null,null,null,null,null,null,null,null,"様"]
[]
[]
[]
[]
[]
[]
[null,null,null,null,null,"電話番号",null,null,null,null,null,null,null,null,null,null,{"$f":"基本情報登録!C11","v":"06-6762-6371"}]
[]
[]
[]
[]
[]
[]
[]
[]
[]
[]
[]
[]
[]
[]
[]
[]
[]
[]
[]
["申出者署名欄"]
[null,null,null,null,null,null,null,{"$f":"IF(ISBLANK(入力!D38),\"✔\",\"\")","v":"✔"},null,null,null,null,null,null,"産前産後休業を終了した際の標準報酬月額の改定について申出します。",null,null,null,null,null,null,null,null,null,null,null,null,null,null,null,null,null,null,null,null,null,null,null,null,null,null,null,null,null,null,null,null,null,null,null,null,null,null,null,null,null,null,null,null,null,null,null,null,null,null,null,null,null,null,null,null,null,null,null,null,null,null,null,null,null,null,null,null,null,null,null,null,null,null,null,null,null,null,null,{"$f":"入力!D7","v":"2022-11-02"}]
[]
[]
[]
[null,null,null,null,null,null,null,null,null,null,null,null,null,null,"(健康保険法施行規則第38条の3及び厚生年金保険法施行規則第10条の2)\n※必ず□に✓してください。"]
[]
[]
[]
[]
[]
[]
[]
[]
[]
[null,null,null,null,null,"住所",null,null,null,null,null,null,{"$f":"IF(ISTEXT(入力!D5),入力!D5,\"\")","v":"大阪府大阪市中央区瓦屋町2-3-1　岸和田第3ビル3階"}]
[]
[]
[]
[]
[]
[]
[null,null,null,null,null,"氏名",null,null,null,null,null,null,{"$f":"IF(ISTEXT(入力!D3),入力!D3,\"\")","v":"大阪健保　整子"},null,null,null,null,null,null,null,null,null,null,null,null,null,null,null,null,null,null,null,null,null,null,null,null,null,null,null,null,null,null,null,null,null,null,null,null,null,null,null,null,null,null,null,null,null,null,null,null,null,null,null,null,null,null,"電話",null,null,null,null,null,null,{"$f":"IF(ISTEXT(入力!D6),入力!D6,\"\")","v":"06-6762-6371"}]
[]
[]
[]
[]
[]
[]
[]
["被保険者欄",null,null,null,null,1,null,null,null,"番号",null,null,null,null,null,null,null,null,null,null,null,{"$f":"IF(ISNUMBER(入力!D8),入力!D8,\"\")","v":5402},null,null,null,null,null,null,null,null,null,null,null,null,null,null,null,null,null,null,null,null,null,null,null,null,null,null,null,null,null,null,null,null,null,null,null,null,null,null,null,null,null,null,null,null,null,2,null,null,null,"個人番号\n(基礎年金番号)"]
[]
[]
[]
[]
[]
[]
[]
[null,null,null,null,null,3,null,null,null,"被保険者氏名",null,null,null,null,null,null,null,null,null,null,null,"ﾌﾘｶﾞﾅ",null,null,null,null,null,null,{"$f":"IF(ISTEXT(入力!D4),入力!D4,\"\")","v":"オオサカケンポ　セイコ"},null,null,null,null,null,null,null,null,null,null,null,null,null,null,null,null,null,null,null,null,null,null,null,null,null,null,null,null,null,null,null,null,null,null,null,null,null,null,4,null,null,null,"被保険者\n生年月日",null,null,null,null,null,null,null,null,null,null,null,{"$f":"IF(ISNUMBER(入力!D10),入力!D10,\"\")","v":"1997-02-02"}]
[]
[]
[null,null,null,null,null,null,null,null,null,null,null,null,null,null,null,null,null,null,null,null,null,"氏名",null,null,null,null,null,null,{"$f":"IF(ISTEXT(入力!D3),入力!D3,\"\")","v":"大阪健保　整子"}]
[]
[]
[]
[]
[]
[]
[null,null,null,null,null,5,null,null,null,"子の氏名",null,null,null,null,null,null,null,null,null,null,null,"ﾌﾘｶﾞﾅ",null,null,null,null,null,null,{"$f":"IF(ISTEXT(入力!D13),入力!D13,\"\")","v":"オオサカケンポ　セイタロウ"},null,null,null,null,null,null,null,null,null,null,null,null,null,null,null,null,null,null,null,null,null,null,null,null,null,null,null,null,null,null,null,null,null,null,null,null,null,null,6,null,null,null,"子の生年月日",null,null,null,null,null,null,null,null,null,null,null,{"$f":"IF(ISNUMBER(入力!D14),入力!D14,\"\")","v":"2022-09-25"}]
[]
[]
[null,null,null,null,null,null,null,null,null,null,null,null,null,null,null,null,null,null,null,null,null,"氏名",null,null,null,null,null,null,{"$f":"IF(ISTEXT(入力!D12),入力!D12,\"\")","v":"大阪健保　整太郎"}]
[]
[]
[]
[]
[]
[]
[null,null,null,null,null,7,null,null,null,"産前産後休業終了年月日",null,null,null,null,null,null,null,null,null,null,null,{"$f":"IF(ISNUMBER(入力!D11),入力!D11,\"\")","v":"2022-11-20"}]
[]
[]
[]
[]
[]
[]
[]
[null,null,null,null,null,8,null,null,null,null,null,null,null,null,null,null,"支給月",null,null,null,null,null,null,null,null,"基礎日数",null,null,null,null,null,null,null,null,"通貨",null,null,null,null,null,null,null,null,null,null,null,null,null,null,null,null,null,null,null,null,"現物",null,null,null,null,null,null,null,null,null,null,null,null,null,null,null,null,null,null,"合計",null,null,null,null,null,null,null,null,null,null,null,null,null,null,null,null,null,null,null,null,9,null,null,null,"総計",null,null,null,null,null,null,null,null,null,null,null,null,null,null,null,null,"決定"]
[]
[]
[null,null,null,null,null,null,null,null,null,null,null,null,null,null,null,null,{"$f":"IF(ISNUMBER(入力!D11),入力!I7,\"\")","v":"2022-11-01"},null,null,null,null,null,"月",null,null,{"$f":"IF(ISNUMBER(入力!D21),入力!D21,\"\")","v":0},null,null,null,null,null,"日",null,null,{"$f":"IF(ISNUMBER(入力!D24),入力!D24,\"\")","v":0},null,null,null,null,null,null,null,null,null,null,null,null,null,null,null,null,null,"円",null,null,{"$f":"IF(ISNUMBER(入力!D35),入力!D35,\"\")","v":300},null,null,null,null,null,null,null,null,null,null,null,null,null,null,null,"円",null,null,{"$f":"IF(OR(ISNUMBER(入力!D24),ISNUMBER(入力!D25),ISNUMBER(入力!D26)),入力!G10,\"\")","v":0},null,null,null,null,null,null,null,null,null,null,null,null,null,null,null,null,null,"円",null,null,{"$f":"IF(OR(ISNUMBER(入力!D24),ISNUMBER(入力!D25),ISNUMBER(入力!D26)),入力!I11,\"\")","v":480900},null,null,null,null,null,null,null,null,null,null,null,null,null,null,null,null,null,"円"]
[]
[]
[null,null,null,null,null,"給与\n支給月\n及び\n報酬月額",null,null,null,null,null,null,null,null,null,null,null,null,null,null,null,null,null,null,null,null,null,null,null,null,null,null,null,null,null,null,null,null,null,null,null,null,null,null,null,null,null,null,null,null,null,null,null,null,null,null,null,null,null,null,null,null,null,null,null,null,null,null,null,null,null,null,null,null,null,null,null,null,null,null,null,null,null,null,null,null,null,null,null,null,null,null,null,null,null,null,null,null,null,null,null,null,null,null,null,null,null,null,null,null,null,null,null,null,null,null,"健保"]
[]
[]
[null,null,null,null,null,null,null,null,null,null,null,null,null,null,null,null,"支給月",null,null,null,null,null,null,null,null,"基礎日数",null,null,null,null,null,null,null,null,"通貨",null,null,null,null,null,null,null,null,null,null,null,null,null,null,null,null,null,null,null,null,"現物",null,null,null,null,null,null,null,null,null,null,null,null,null,null,null,null,null,null,"合計",null,null,null,null,null,null,null,null,null,null,null,null,null,null,null,null,null,null,null,null,10,null,null,null,"平均額"]
[null,null,null,null,null,null,null,null,null,null,null,null,null,null,null,null,null,null,null,null,null,null,null,null,null,null,null,null,null,null,null,null,null,null,null,null,null,null,null,null,null,null,null,null,null,null,null,null,null,null,null,null,null,null,null,null,null,null,null,null,null,null,null,null,null,null,null,null,null,null,null,null,null,null,null,null,null,null,null,null,null,null,null,null,null,null,null,null,null,null,null,null,null,null,null,null,null,null,null,null,null,null,null,null,null,null,null,null,null,null,null,null,null,null,null,null,{"$f":"IF(OR(ISNUMBER(入力!D24),ISNUMBER(入力!D25),ISNUMBER(入力!D26)),入力!H17,\"\")","v":240}]
[]
[null,null,null,null,null,null,null,null,null,null,null,null,null,null,null,null,{"$f":"IF(ISNUMBER(入力!D11),入力!I8,\"\")","v":"2022-12-02"},null,null,null,null,null,"月",null,null,{"$f":"IF(ISNUMBER(入力!D22),入力!D22,\"\")","v":25},null,null,null,null,null,"日",null,null,{"$f":"IF(ISNUMBER(入力!D25),入力!D25,\"\")","v":230000},null,null,null,null,null,null,null,null,null,null,null,null,null,null,null,null,null,"円",null,null,{"$f":"IF(ISNUMBER(入力!D36),入力!D36,\"\")","v":400},null,null,null,null,null,null,null,null,null,null,null,null,null,null,null,"円",null,null,{"$f":"IF(OR(ISNUMBER(入力!D24),ISNUMBER(入力!D25),ISNUMBER(入力!D26)),入力!G11,\"\")","v":230400},null,null,null,null,null,null,null,null,null,null,null,null,null,null,null,null,null,"円",null,null,{"$f":"IF(OR(ISNUMBER(入力!D24),ISNUMBER(入力!D25),ISNUMBER(入力!D26)),入力!I12,\"\")","v":240450},null,null,null,null,null,null,null,null,null,null,null,null,null,null,null,null,null,"円"]
[]
[]
[]
[]
[]
[null,null,null,null,null,null,null,null,null,null,null,null,null,null,null,null,"支給月",null,null,null,null,null,null,null,null,"基礎日数",null,null,null,null,null,null,null,null,"通貨",null,null,null,null,null,null,null,null,null,null,null,null,null,null,null,null,null,null,null,null,"現物",null,null,null,null,null,null,null,null,null,null,null,null,null,null,null,null,null,null,"合計",null,null,null,null,null,null,null,null,null,null,null,null,null,null,null,null,null,null,null,null,11,null,null,null,"修正平均額"]
[]
[]
[null,null,null,null,null,null,null,null,null,null,null,null,null,null,null,null,{"$f":"IF(ISNUMBER(入力!D11),入力!I9,\"\")","v":"2023-01-02"},null,null,null,null,null,"月",null,null,{"$f":"IF(ISNUMBER(入力!D23),入力!D23,\"\")","v":31},null,null,null,null,null,"日",null,null,{"$f":"IF(ISNUMBER(入力!D26),入力!D26,\"\")","v":250000},null,null,null,null,null,null,null,null,null,null,null,null,null,null,null,null,null,"円",null,null,{"$f":"IF(ISNUMBER(入力!D37),入力!D37,\"\")","v":500},null,null,null,null,null,null,null,null,null,null,null,null,null,null,null,"円",null,null,{"$f":"IF(OR(ISNUMBER(入力!D24),ISNUMBER(入力!D25),ISNUMBER(入力!D26)),入力!G12,\"\")","v":250500},null,null,null,null,null,null,null,null,null,null,null,null,null,null,null,null,null,"円",null,null,{"$f":"IF(ISNUMBER(入力!D34),入力!I14,\"\")","v":235450},null,null,null,null,null,null,null,null,null,null,null,null,null,null,null,null,null,"円"]
[null,null,null,null,null,null,null,null,null,null,null,null,null,null,null,null,null,null,null,null,null,null,null,null,null,null,null,null,null,null,null,null,null,null,null,null,null,null,null,null,null,null,null,null,null,null,null,null,null,null,null,null,null,null,null,null,null,null,null,null,null,null,null,null,null,null,null,null,null,null,null,null,null,null,null,null,null,null,null,null,null,null,null,null,null,null,null,null,null,null,null,null,null,null,null,null,null,null,null,null,null,null,null,null,null,null,null,null,null,null,null,null,null,null,null,null,"千円"]
[]
[]
[]
[null,null,null,null,null,null,null,null,null,null,null,null,null,null,null,null,null,null,null,null,null,null,null,null,null,null,null,null,null,null,null,null,null,null,null,null,null,null,null,null,null,null,null,null,null,null,null,null,null,null,null,null,null,null,null,null,null,null,null,null,null,null,null,null,null,null,null,null,null,null,null,null,null,null,null,null,null,null,null,null,null,null,null,null,null,null,null,null,null,null,null,null,null,null,null,null,null,null,null,null,null,null,null,null,null,null,null,null,null,null,null,null,null,null,null,null,"年金"]
[null,null,null,null,null,12,null,null,null,null,null,null,null,null,null,null,"健",null,null,{"$f":"IF(ISNUMBER(入力!D18),入力!G20,\"\")","v":300},null,null,null,null,null,null,"千円",null,null,null,"年",null,null,{"$f":"IF(ISNUMBER(入力!D18),入力!G22,\"\")","v":300},null,null,null,null,null,null,"千円",null,null,null,13,null,null,null,null,null,null,null,null,null,null,{"$f":"IF(ISNUMBER(入力!D11),入力!D11,\"\")","v":"2022-11-20"},null,null,null,null,"月",null,{"$f":"IF(ISNUMBER(入力!D20),入力!I5,\"\")","v":"2.降給"},null,null,null,null,null,null,null,null,null,null,null,14,null,null,null,null,null,null,null,null,null,null,null,null,{"$f":"IF(ISNUMBER(入力!D33),入力!D33,\"\")","v":"2023-01-01"},null,null,null,null,"月",null,{"$f":"IF(ISNUMBER(入力!D34),入力!D34,\"\")","v":10000},null,null,null,null,null,null,null,null,null,null,null,null,null,null,null,null,null,null,null,"円"]
[]
[]
[null,null,null,null,null,null,null,null,null,null,null,null,null,null,null,null,null,null,null,null,null,null,null,null,null,null,null,null,null,null,null,null,null,null,null,null,null,null,null,null,null,null,null,null,null,null,null,null,null,null,null,null,null,null,null,null,null,null,null,null,null,null,null,null,null,null,null,null,null,null,null,null,null,null,null,null,null,null,null,null,null,null,null,null,null,null,null,null,null,null,null,null,null,null,null,null,null,null,null,null,null,null,null,null,null,null,null,null,null,null,null,null,null,null,null,null,{"$f":"IF(OR(ISNUMBER(入力!D24),ISNUMBER(入力!D25),ISNUMBER(入力!D26)),入力!H18,\"\")","v":240}]
[null,null,null,null,null,"従前標準\n報酬月額",null,null,null,null,null,null,null,null,null,null,null,null,null,null,null,null,null,null,null,null,null,null,null,null,null,null,null,null,null,null,null,null,null,null,null,null,null,null,"昇給\n降給",null,null,null,null,null,null,null,null,null,null,null,null,null,null,null,null,null,null,null,null,null,null,null,null,null,null,null,null,null,"遡及支払額"]
[]
[]
[]
[]
[null,null,null,null,null,15,null,null,null,null,null,null,null,null,null,null,null,null,{"$f":"IF(ISNUMBER(入力!D11),入力!I3,\"\")","v":"2023-02-02"},null,null,null,null,null,null,null,null,null,null,null,null,null,null,null,null,16,null,null,null,null,null,null,null,null,null,null,"締切日",null,null,null,null,null,null,null,null,null,null,null,"支払日"]
[]
[]
[null,null,null,null,null,null,null,null,null,null,null,null,null,null,null,null,null,null,null,null,null,null,null,null,null,null,null,null,null,null,null,null,null,null,null,null,null,null,null,null,null,null,null,null,null,null,{"$f":"IF(ISNUMBER(入力!D15),入力!D15,\"\")","v":15},null,null,null,null,null,null,null,null,"日",null,null,{"$f":"IF(ISNUMBER(入力!D16),入力!I27,\"\")","v":"当月"},null,null,null,null,null,null,null,null,{"$f":"IF(ISNUMBER(入力!D17),入力!D17,\"\")","v":25},null,null,null,null,null,"日"]
[null,null,null,null,null,"改定年月",null,null,null,null,null,null,null,null,null,null,null,null,null,null,null,null,null,null,null,null,null,null,null,null,null,null,null,null,null,"給料締切日・支払日"]
[null,null,null,null,null,null,null,null,null,null,null,null,null,null,null,null,null,null,null,null,null,null,null,null,null,null,null,null,null,null,null,null,null,null,null,null,null,null,null,null,null,null,null,null,null,null,null,null,null,null,null,null,null,null,null,null,null,null,null,null,null,null,null,null,null,null,null,null,null,null,null,null,null,null,null,null,null,null,null,null,null,null,null,null,null,null,null,null,null,null,null,null,null,null,null,null,null,null,null,null,null,null,null,null,null,null,null,null,null,null,null,null,null,null,null,null,"千円"]
[]
[]
[]
[null,null,null,null,null,17,null,null,null,null,null,null,null,null,null,null,{"$f":"IF((入力!D27)=1,\"1.\",\"\")","v":"1."},null,null,{"$f":"IF((入力!D27)=1,\"70歳以上被用者\",\"\")","v":"70歳以上被用者"},null,null,null,null,null,null,null,null,null,null,null,null,null,null,null,{"$f":"IF((入力!D28)=2,\"2.\",\"\")","v":"2."},null,null,{"$f":"IF((入力!D28)=2,\"二以上勤務被保険者\",\"\")","v":"二以上勤務被保険者"},null,null,null,null,null,null,null,null,null,null,null,null,null,null,null,{"$f":"IF((入力!D29)=3,\"3.\",\"\")","v":"3."},null,null,{"$f":"IF((入力!D29)=3,\"短時間労働者\",\"\")","v":"短時間労働者"},null,null,null,null,null,null,null,null,null,null,null,null,null,null,null,{"$f":"IF((入力!D30)=4,\"4.\",\"\")","v":"4."},null,null,{"$f":"IF((入力!D30)=4,\"パート\",\"\")","v":"パート"},null,null,null,null,null,null,null,null,null,null,null,null,null,null,null,{"$f":"IF((入力!D31)=5,\"5.\",\"\")","v":"5."},null,null,{"$f":"IF((入力!D31)=5,\"その他(\",\"\")","v":"その他("},null,null,null,null,null,null,null,null,null,{"$f":"IF((入力!D31)=5,入力!D32,\"\")","v":"無し"},null,null,null,null,null,null,null,null,null,null,null,null,null,null,null,null,null,null,null,null,{"$f":"IF((入力!D31)=5,\")\",\"\")","v":")"}]
[]
[]
[]
[null,null,null,null,null,"備考"]
[]
[]
[]
[]
[null,null,null,null,null,18,null,null,null,null,null,null,null,null,null,null,"産前産後休業を終了した日の翌日に引き続いて、育児休業等を開始していませんか。",null,null,null,null,null,null,null,null,null,null,null,null,null,null,null,null,null,null,null,null,null,null,null,null,null,null,null,null,null,null,null,null,null,null,null,null,null,null,null,null,null,null,null,null,null,null,null,null,null,null,null,null,null,null,null,null,null,null,null,null,null,null,null,null,null,null,null,null,"※産前産後休業を終了した日の翌日に引き続いて育児休業等を開始した場合は、この申出は出来ません。"]
[]
[null,null,null,null,null,null,null,null,null,null,null,null,null,null,null,null,null,null,null,null,null,null,null,null,null,null,null,null,null,null,null,null,null,null,null,null,null,null,null,null,null,null,null,null,null,null,null,null,null,null,null,null,null,null,null,null,{"$f":"IF(ISBLANK(入力!D39),\"✔\",\"\")","v":"✔"},null,null,null,null,null,null,"開始していません"]
[]
[null,null,null,null,null,"月変該当\nの確認"]
[]
[]
[]
[]
[]
[]
[]
[null,"○",null,null,null,"産前産後休業終了時月額変更届とは"]
[]
[]
[null,null,null,null,null,"産前産後休業終了日に当該産前産後休業に係る子を養育している被保険者は、一定の条件を満たす場合、随時改定に該当しなくても、産前産後休業終了日の翌日が属する月以後3ヶ月間に受けた報酬の平均値に基づき、4ヶ月目の標準報酬月額から改定することができます。ただし、産前産後休業を終了した翌日に引き続いて育児休業等を開始した場合は、この申出はできません、"]
[]
[]
[]
[]
[]
[]
[]
[null,"○",null,null,null,"変更後の標準報酬月額が以前より下がった方へ"]
[]
[]
[null,null,null,null,null,"3歳未満の子を養育する被保険者または被保険者であった者で、養育期間中の各月の標準報酬月額が、養育開始月の前月の標準報酬月額を下回る場合、「養育期間の従前標準報酬月額みなし措置」という制度をご利用いただけます。この申出をいただきますと、将来の年金額の計算時には養育期間以前の標準報酬月額を用いることができますので、「産前産後休業終了時報酬月額変更届」とあわせて、「養育期間標準報酬月額特例申出書」を提出して下さい。"]

{"sheet":"年金正","index":5,"n_rows":215,"n_cols":127,"rows_kept":215,"cut":false,"hidden":false,"merged":[[69,7,73,11],[69,14,72,67],[73,14,77,67],[55,71,64,130],[25,5,30,15],[26,16,32,69],[31,5,33,15],[33,16,33,69],[34,5,39,15],[34,16,39,69],[24,105,52,139],[50,71,54,101],[48,5,53,15],[48,16,53,69],[23,32,25,69],[54,0,64,69],[55,131,64,139],[15,0,53,4],[15,5,18,15],[47,5,47,15],[47,16,47,69],[20,105,23,139],[23,16,25,18],[23,19,25,31],[41,5,46,15],[41,16,46,61],[41,62,46,69],[0,29,8,50],[15,24,18,31],[40,5,40,15],[40,16,40,69],[15,32,18,45],[9,0,12,27],[15,16,18,23],[20,5,24,15],[20,16,22,69],[179,57,187,72],[192,5,196,15],[179,5,182,8],[179,9,182,15],[68,0,96,4],[69,94,73,124],[79,5,82,36],[83,5,87,11],[83,12,87,124],[90,5,94,11],[90,12,94,55],[90,56,94,59],[90,67,94,73],[90,74,94,114],[116,71,125,82],[116,83,125,127],[119,21,125,27],[119,28,125,66],[98,67,105,70],[98,71,105,82],[98,83,105,127],[106,5,115,8],[106,9,115,20],[106,21,108,27],[106,28,108,66],[106,67,115,70],[106,71,115,82],[106,83,115,127],[109,21,115,27],[109,28,115,66],[98,5,105,8],[98,9,105,20],[98,21,105,44],[98,45,105,66],[116,5,125,8],[116,9,125,20],[116,21,118,27],[116,28,118,66],[137,71,142,73],[137,74,142,91],[137,92,142,94],[137,95,142,112],[137,113,142,115],[126,67,133,127],[134,5,139,8],[134,9,139,15],[134,16,136,24],[134,25,136,33],[134,34,136,54],[134,55,136,73],[134,74,136,94],[134,95,136,98],[134,99,136,115],[137,16,142,21],[137,22,142,24],[137,25,142,30],[137,31,142,33],[137,34,142,51],[146,113,151,115],[143,16,145,24],[143,25,145,33],[143,34,145,54],[143,55,145,73],[143,74,145,94],[143,95,145,98],[143,99,145,115],[146,16,151,21],[146,22,151,24],[146,25,151,30],[146,31,151,33],[146,34,151,51],[146,52,151,54],[146,55,151,70],[152,74,154,94],[152,95,154,98],[152,16,154,24],[126,5,133,8],[126,9,133,20],[126,21,133,66],[137,52,142,54],[146,71,151,73],[146,74,151,91],[146,92,151,94],[146,95,151,112],[161,9,164,15],[161,16,169,18],[161,19,169,25],[161,26,169,29],[161,30,169,32],[161,33,169,39],[161,40,169,43],[161,44,164,47],[152,99,154,115],[155,16,160,21],[155,22,160,24],[155,25,160,30],[155,31,160,33],[155,34,160,51],[155,52,160,54],[155,55,160,70],[155,71,160,73],[155,74,160,91],[155,92,160,94],[155,95,160,112],[155,113,160,115],[152,25,154,33],[152,34,154,54],[152,55,154,73],[200,1,202,4],[200,5,202,137],[203,5,210,137],[211,1,213,4],[211,5,213,137],[188,61,196,62],[188,63,189,84],[188,85,196,127],[190,56,194,60],[190,63,194,84],[195,56,196,60],[195,63,196,84],[188,5,191,8],[188,9,191,15],[188,16,196,53],[188,54,196,55],[188,56,189,60],[98,0,196,4],[137,55,142,70],[140,5,160,15],[116,67,125,70],[179,35,187,37],[179,38,187,53],[179,54,187,56],[214,5,222,137],[134,116,178,127],[179,126,187,127],[183,5,187,15],[173,58,178,66],[173,67,178,72],[173,73,178,75],[174,5,178,15],[174,35,178,45],[161,114,169,115],[165,5,169,15],[165,44,169,54],[165,74,169,84],[170,5,173,8],[170,9,173,15],[170,16,178,17],[170,18,178,34],[170,35,173,38],[170,39,173,45],[170,46,172,57],[170,58,172,75],[170,76,178,115],[173,46,178,54],[173,55,178,57],[0,0,3,15],[4,0,7,3],[4,4,7,7],[4,8,7,11],[4,12,7,15],[0,51,8,118],[179,16,187,18],[179,19,187,34],[179,73,187,75],[179,76,187,91],[179,92,187,94],[179,95,187,104],[179,105,187,125],[161,78,164,84],[161,85,169,86],[161,87,169,91],[161,92,169,93],[161,94,169,113],[161,48,164,54],[161,55,169,59],[161,60,169,61],[161,62,169,73],[161,74,164,77],[161,5,164,8]]}
["様式コード",null,null,null,null,null,null,null,null,null,null,null,null,null,null,null,null,null,null,null,null,null,null,null,null,null,null,null,null,"厚生年金保険",null,null,null,null,null,null,null,null,null,null,null,null,null,null,null,null,null,null,null,null,null,"産前産後休業終了時報酬月額変更届\n70歳以上被用者産前産後休業終了時報酬月額相当額変更届"]
[]
[]
[]
[2,null,null,null,2,null,null,null,2,null,null,null,3]
[]
[]
[]
[]
[{"$f":"基本情報登録!C2","v":"2022-11-02"}]
[]
[]
[]
[]
[]
["提出者記入欄",null,null,null,null,"記号",null,null,null,null,null,null,null,null,null,null,{"$f":"基本情報登録!C3","v":"南"},null,null,null,null,null,null,null,{"$f":"基本情報登録!C4","v":"ＷＥＤ"},null,null,null,null,null,null,null,{"$f":"基本情報登録!C5","v":"00687"}]
[]
[]
[]
[]
[null,null,null,null,null,null,null,null,null,null,null,null,null,null,null,null,"届書記入の個人番号に誤りがないことを確認しました。",null,null,null,null,null,null,null,null,null,null,null,null,null,null,null,null,null,null,null,null,null,null,null,null,null,null,null,null,null,null,null,null,null,null,null,null,null,null,null,null,null,null,null,null,null,null,null,null,null,null,null,null,null,null,null,null,null,null,null,null,null,null,null,null,null,null,null,null,null,null,null,null,null,null,null,null,null,null,null,null,null,null,null,null,null,null,null,null,"受付印"]
[]
[]
[null,null,null,null,null,null,null,null,null,null,null,null,null,null,null,null,"〒",null,null,{"$f":"基本情報登録!C7","v":"542-0066"}]
[]
[null,null,null,null,null,"事業所\n所在地"]
[null,null,null,null,null,null,null,null,null,null,null,null,null,null,null,null,{"$f":"基本情報登録!C8","v":"大阪府大阪市中央区瓦屋町2-3-1"}]
[]
[]
[]
[]
[]
[]
[]
[null,null,null,null,null,"事業所\n名称",null,null,null,null,null,null,null,null,null,null,{"$f":"基本情報登録!C9","v":"大阪自動車整備健康保険組合"}]
[]
[]
[]
[]
[]
[]
[null,null,null,null,null,"事業主\n氏名",null,null,null,null,null,null,null,null,null,null,{"$f":"基本情報登録!C10","v":"理事長　健保　太郎"}]
[]
[]
[]
[]
[]
[]
[null,null,null,null,null,"電話番号",null,null,null,null,null,null,null,null,null,null,{"$f":"基本情報登録!C11","v":"06-6762-6371"}]
[]
[null,null,null,null,null,null,null,null,null,null,null,null,null,null,null,null,null,null,null,null,null,null,null,null,null,null,null,null,null,null,null,null,null,null,null,null,null,null,null,null,null,null,null,null,null,null,null,null,null,null,null,null,null,null,null,null,null,null,null,null,null,null,null,null,null,null,null,null,null,null,null,"社会保険労務士記載欄"]
[]
[]
[]
[]
[]
[]
[]
[]
[]
[]
[]
[]
[]
[]
[]
[]
[]
["申出者署名欄"]
[null,null,null,null,null,null,null,{"$f":"IF(ISBLANK(入力!D38),\"✔\",\"\")","v":"✔"},null,null,null,null,null,null,"産前産後休業を終了した際の標準報酬月額の改定について申出します。",null,null,null,null,null,null,null,null,null,null,null,null,null,null,null,null,null,null,null,null,null,null,null,null,null,null,null,null,null,null,null,null,null,null,null,null,null,null,null,null,null,null,null,null,null,null,null,null,null,null,null,null,null,null,null,null,null,null,null,null,null,null,null,null,null,null,null,null,null,null,null,null,null,null,null,null,null,null,null,{"$f":"入力!D7","v":"2022-11-02"}]
[]
[]
[]
[null,null,null,null,null,null,null,null,null,null,null,null,null,null,"(健康保険法施行規則第38条の3及び厚生年金保険法施行規則第10条の2)\n※必ず□に✓してください。"]
[]
[]
[]
[]
[]
[null,null,null,null,null,"日本年金機構理事長あて"]
[]
[]
[]
[null,null,null,null,null,"住所",null,null,null,null,null,null,{"$f":"IF(ISTEXT(入力!D5),入力!D5,\"\")","v":"大阪府大阪市中央区瓦屋町2-3-1　岸和田第3ビル3階"}]
[]
[]
[]
[]
[]
[]
[null,null,null,null,null,"氏名",null,null,null,null,null,null,{"$f":"IF(ISTEXT(入力!D3),入力!D3,\"\")","v":"大阪健保　整子"},null,null,null,null,null,null,null,null,null,null,null,null,null,null,null,null,null,null,null,null,null,null,null,null,null,null,null,null,null,null,null,null,null,null,null,null,null,null,null,null,null,null,null,null,null,null,null,null,null,null,null,null,null,null,"電話",null,null,null,null,null,null,{"$f":"IF(ISTEXT(入力!D6),入力!D6,\"\")","v":"06-6762-6371"}]
[]
[]
[]
[]
[]
[]
[]
["被保険者欄",null,null,null,null,1,null,null,null,"被保険者\n整理番号",null,null,null,null,null,null,null,null,null,null,null,{"$f":"IF(ISNUMBER(入力!D8),入力!D8,\"\")","v":5402},null,null,null,null,null,null,null,null,null,null,null,null,null,null,null,null,null,null,null,null,null,null,null,null,null,null,null,null,null,null,null,null,null,null,null,null,null,null,null,null,null,null,null,null,null,2,null,null,null,"個人番号\n(基礎年金番号)",null,null,null,null,null,null,null,null,null,null,null,{"$f":"IF(ISNUMBER(入力!D9),入力!D9,\"\")","v":123456789012}]
[]
[]
[]
[]
[]
[]
[]
[null,null,null,null,null,3,null,null,null,"被保険者氏名",null,null,null,null,null,null,null,null,null,null,null,"ﾌﾘｶﾞﾅ",null,null,null,null,null,null,{"$f":"IF(ISTEXT(入力!D4),入力!D4,\"\")","v":"オオサカケンポ　セイコ"},null,null,null,null,null,null,null,null,null,null,null,null,null,null,null,null,null,null,null,null,null,null,null,null,null,null,null,null,null,null,null,null,null,null,null,null,null,null,4,null,null,null,"被保険者\n生年月日",null,null,null,null,null,null,null,null,null,null,null,{"$f":"IF(ISNUMBER(入力!D10),入力!D10,\"\")","v":"1997-02-02"}]
[]
[]
[null,null,null,null,null,null,null,null,null,null,null,null,null,null,null,null,null,null,null,null,null,"氏名",null,null,null,null,null,null,{"$f":"IF(ISTEXT(入力!D3),入力!D3,\"\")","v":"大阪健保　整子"}]
[]
[]
[]
[]
[]
[]
[null,null,null,null,null,5,null,null,null,"子の氏名",null,null,null,null,null,null,null,null,null,null,null,"ﾌﾘｶﾞﾅ",null,null,null,null,null,null,{"$f":"IF(ISTEXT(入力!D13),入力!D13,\"\")","v":"オオサカケンポ　セイタロウ"},null,null,null,null,null,null,null,null,null,null,null,null,null,null,null,null,null,null,null,null,null,null,null,null,null,null,null,null,null,null,null,null,null,null,null,null,null,null,6,null,null,null,"子の生年月日",null,null,null,null,null,null,null,null,null,null,null,{"$f":"IF(ISNUMBER(入力!D14),入力!D14,\"\")","v":"2022-09-25"}]
[]
[]
[null,null,null,null,null,null,null,null,null,null,null,null,null,null,null,null,null,null,null,null,null,"氏名",null,null,null,null,null,null,{"$f":"IF(ISTEXT(入力!D12),入力!D12,\"\")","v":"大阪健保　整太郎"}]
[]
[]
[]
[]
[]
[]
[null,null,null,null,null,7,null,null,null,"産前産後休業終了年月日",null,null,null,null,null,null,null,null,null,null,null,{"$f":"IF(ISNUMBER(入力!D11),入力!D11,\"\")","v":"2022-11-20"}]
[]
[]
[]
[]
[]
[]
[]
[null,null,null,null,null,8,null,null,null,null,null,null,null,null,null,null,"支給月",null,null,null,null,null,null,null,null,"基礎日数",null,null,null,null,null,null,null,null,"通貨",null,null,null,null,null,null,null,null,null,null,null,null,null,null,null,null,null,null,null,null,"現物",null,null,null,null,null,null,null,null,null,null,null,null,null,null,null,null,null,null,"合計",null,null,null,null,null,null,null,null,null,null,null,null,null,null,null,null,null,null,null,null,9,null,null,null,"総計"]
[]
[]
[null,null,null,null,null,null,null,null,null,null,null,null,null,null,null,null,{"$f":"IF(ISNUMBER(入力!D11),入力!I7,\"\")","v":"2022-11-01"},null,null,null,null,null,"月",null,null,{"$f":"IF(ISNUMBER(入力!D21),入力!D21,\"\")","v":0},null,null,null,null,null,"日",null,null,{"$f":"IF(ISNUMBER(入力!D24),入力!D24,\"\")","v":0},null,null,null,null,null,null,null,null,null,null,null,null,null,null,null,null,null,"円",null,null,{"$f":"IF(ISNUMBER(入力!D35),入力!D35,\"\")","v":300},null,null,null,null,null,null,null,null,null,null,null,null,null,null,null,"円",null,null,{"$f":"IF(OR(ISNUMBER(入力!D24),ISNUMBER(入力!D25),ISNUMBER(入力!D26)),入力!G10,\"\")","v":0},null,null,null,null,null,null,null,null,null,null,null,null,null,null,null,null,null,"円",null,null,{"$f":"IF(OR(ISNUMBER(入力!D24),ISNUMBER(入力!D25),ISNUMBER(入力!D26)),入力!I11,\"\")","v":480900},null,null,null,null,null,null,null,null,null,null,null,null,null,null,null,null,null,"円"]
[]
[]
[null,null,null,null,null,"給与\n支給月\n及び\n報酬月額"]
[]
[]
[null,null,null,null,null,null,null,null,null,null,null,null,null,null,null,null,"支給月",null,null,null,null,null,null,null,null,"基礎日数",null,null,null,null,null,null,null,null,"通貨",null,null,null,null,null,null,null,null,null,null,null,null,null,null,null,null,null,null,null,null,"現物",null,null,null,null,null,null,null,null,null,null,null,null,null,null,null,null,null,null,"合計",null,null,null,null,null,null,null,null,null,null,null,null,null,null,null,null,null,null,null,null,10,null,null,null,"平均額"]
[]
[]
[null,null,null,null,null,null,null,null,null,null,null,null,null,null,null,null,{"$f":"IF(ISNUMBER(入力!D11),入力!I8,\"\")","v":"2022-12-02"},null,null,null,null,null,"月",null,null,{"$f":"IF(ISNUMBER(入力!D22),入力!D22,\"\")","v":25},null,null,null,null,null,"日",null,null,{"$f":"IF(ISNUMBER(入力!D25),入力!D25,\"\")","v":230000},null,null,null,null,null,null,null,null,null,null,null,null,null,null,null,null,null,"円",null,null,{"$f":"IF(ISNUMBER(入力!D36),入力!D36,\"\")","v":400},null,null,null,null,null,null,null,null,null,null,null,null,null,null,null,"円",null,null,{"$f":"IF(OR(ISNUMBER(入力!D24),ISNUMBER(入力!D25),ISNUMBER(入力!D26)),入力!G11,\"\")","v":230400},null,null,null,null,null,null,null,null,null,null,null,null,null,null,null,null,null,"円",null,null,{"$f":"IF(OR(ISNUMBER(入力!D24),ISNUMBER(入力!D25),ISNUMBER(入力!D26)),入力!I12,\"\")","v":240450},null,null,null,null,null,null,null,null,null,null,null,null,null,null,null,null,null,"円"]
[]
[]
[]
[]
[]
[null,null,null,null,null,null,null,null,null,null,null,null,null,null,null,null,"支給月",null,null,null,null,null,null,null,null,"基礎日数",null,null,null,null,null,null,null,null,"通貨",null,null,null,null,null,null,null,null,null,null,null,null,null,null,null,null,null,null,null,null,"現物",null,null,null,null,null,null,null,null,null,null,null,null,null,null,null,null,null,null,"合計",null,null,null,null,null,null,null,null,null,null,null,null,null,null,null,null,null,null,null,null,11,null,null,null,"修正平均額"]
[]
[]
[null,null,null,null,null,null,null,null,null,null,null,null,null,null,null,null,{"$f":"IF(ISNUMBER(入力!D11),入力!I9,\"\")","v":"2023-01-02"},null,null,null,null,null,"月",null,null,{"$f":"IF(ISNUMBER(入力!D23),入力!D23,\"\")","v":31},null,null,null,null,null,"日",null,null,{"$f":"IF(ISNUMBER(入力!D26),入力!D26,\"\")","v":250000},null,null,null,null,null,null,null,null,null,null,null,null,null,null,null,null,null,"円",null,null,{"$f":"IF(ISNUMBER(入力!D37),入力!D37,\"\")","v":500},null,null,null,null,null,null,null,null,null,null,null,null,null,null,null,"円",null,null,{"$f":"IF(OR(ISNUMBER(入力!D24),ISNUMBER(入力!D25),ISNUMBER(入力!D26)),入力!G12,\"\")","v":250500},null,null,null,null,null,null,null,null,null,null,null,null,null,null,null,null,null,"円",null,null,{"$f":"IF(ISNUMBER(入力!D34),入力!I14,\"\")","v":235450},null,null,null,null,null,null,null,null,null,null,null,null,null,null,null,null,null,"円"]
[]
[]
[]
[]
[]
[null,null,null,null,null,12,null,null,null,null,null,null,null,null,null,null,"健",null,null,{"$f":"IF(ISNUMBER(入力!D18),入力!G20,\"\")","v":300},null,null,null,null,null,null,"千円",null,null,null,"年",null,null,{"$f":"IF(ISNUMBER(入力!D18),入力!G22,\"\")","v":300},null,null,null,null,null,null,"千円",null,null,null,13,null,null,null,null,null,null,null,null,null,null,{"$f":"IF(ISNUMBER(入力!D11),入力!D11,\"\")","v":"2022-11-20"},null,null,null,null,"月",null,{"$f":"IF(ISNUMBER(入力!D20),入力!I5,\"\")","v":"2.降給"},null,null,null,null,null,null,null,null,null,null,null,14,null,null,null,null,null,null,null,null,null,null,null,null,{"$f":"IF(ISNUMBER(入力!D33),入力!D33,\"\")","v":"2023-01-01"},null,null,null,null,"月",null,{"$f":"IF(ISNUMBER(入力!D34),入力!D34,\"\")","v":10000},null,null,null,null,null,null,null,null,null,null,null,null,null,null,null,null,null,null,null,"円"]
[]
[]
[]
[null,null,null,null,null,"従前標準\n報酬月額",null,null,null,null,null,null,null,null,null,null,null,null,null,null,null,null,null,null,null,null,null,null,null,null,null,null,null,null,null,null,null,null,null,null,null,null,null,null,"昇給\n降給",null,null,null,null,null,null,null,null,null,null,null,null,null,null,null,null,null,null,null,null,null,null,null,null,null,null,null,null,null,"遡及支払額"]
[]
[]
[]
[]
[null,null,null,null,null,15,null,null,null,null,null,null,null,null,null,null,null,null,{"$f":"IF(ISNUMBER(入力!D11),入力!I3,\"\")","v":"2023-02-02"},null,null,null,null,null,null,null,null,null,null,null,null,null,null,null,null,16,null,null,null,null,null,null,null,null,null,null,"締切日",null,null,null,null,null,null,null,null,null,null,null,"支払日"]
[]
[]
[null,null,null,null,null,null,null,null,null,null,null,null,null,null,null,null,null,null,null,null,null,null,null,null,null,null,null,null,null,null,null,null,null,null,null,null,null,null,null,null,null,null,null,null,null,null,{"$f":"IF(ISNUMBER(入力!D15),入力!D15,\"\")","v":15},null,null,null,null,null,null,null,null,"日",null,null,{"$f":"IF(ISNUMBER(入力!D16),入力!I27,\"\")","v":"当月"},null,null,null,null,null,null,null,null,{"$f":"IF(ISNUMBER(入力!D17),入力!D17,\"\")","v":25},null,null,null,null,null,"日"]
[null,null,null,null,null,"改定年月",null,null,null,null,null,null,null,null,null,null,null,null,null,null,null,null,null,null,null,null,null,null,null,null,null,null,null,null,null,"給料締切日・支払日"]
[]
[]
[]
[]
[null,null,null,null,null,17,null,null,null,null,null,null,null,null,null,null,{"$f":"IF((入力!D27)=1,\"1.\",\"\")","v":"1."},null,null,{"$f":"IF((入力!D27)=1,\"70歳以上被用者\",\"\")","v":"70歳以上被用者"},null,null,null,null,null,null,null,null,null,null,null,null,null,null,null,{"$f":"IF((入力!D28)=2,\"2.\",\"\")","v":"2."},null,null,{"$f":"IF((入力!D28)=2,\"二以上勤務被保険者\",\"\")","v":"二以上勤務被保険者"},null,null,null,null,null,null,null,null,null,null,null,null,null,null,null,{"$f":"IF((入力!D29)=3,\"3.\",\"\")","v":"3."},null,null,{"$f":"IF((入力!D29)=3,\"短時間労働者\",\"\")","v":"短時間労働者"},null,null,null,null,null,null,null,null,null,null,null,null,null,null,null,{"$f":"IF((入力!D30)=4,\"4.\",\"\")","v":"4."},null,null,{"$f":"IF((入力!D30)=4,\"パート\",\"\")","v":"パート"},null,null,null,null,null,null,null,null,null,null,null,null,null,null,null,{"$f":"IF((入力!D31)=5,\"5.\",\"\")","v":"5."},null,null,{"$f":"IF((入力!D31)=5,\"その他(\",\"\")","v":"その他("},null,null,null,null,null,null,null,null,null,{"$f":"IF((入力!D31)=5,入力!D32,\"\")","v":"無し"},null,null,null,null,null,null,null,null,null,null,null,null,null,null,null,null,null,null,null,null,{"$f":"IF((入力!D31)=5,\")\",\"\")","v":")"}]
[]
[]
[]
[null,null,null,null,null,"備考"]
[]
[]
[]
[]
[null,null,null,null,null,18,null,null,null,null,null,null,null,null,null,null,"産前産後休業を終了した日の翌日に引き続いて、育児休業等を開始していませんか。",null,null,null,null,null,null,null,null,null,null,null,null,null,null,null,null,null,null,null,null,null,null,null,null,null,null,null,null,null,null,null,null,null,null,null,null,null,null,null,null,null,null,null,null,null,null,null,null,null,null,null,null,null,null,null,null,null,null,null,null,null,null,null,null,null,null,null,null,"※産前産後休業を終了した日の翌日に引き続いて育児休業等を開始した場合は、この申出は出来ません。"]
[]
[null,null,null,null,null,null,null,null,null,null,null,null,null,null,null,null,null,null,null,null,null,null,null,null,null,null,null,null,null,null,null,null,null,null,null,null,null,null,null,null,null,null,null,null,null,null,null,null,null,null,null,null,null,null,null,null,{"$f":"IF(ISBLANK(入力!D39),\"✔\",\"\")","v":"✔"},null,null,null,null,null,null,"開始していません"]
[]
[null,null,null,null,null,"月変該当\nの確認"]
[]
[]
[]
[]
[]
[]
[]
[null,"○",null,null,null,"産前産後休業終了時月額変更届とは"]
[]
[]
[null,null,null,null,null,"産前産後休業終了日に当該産前産後休業に係る子を養育している被保険者は、一定の条件を満たす場合、随時改定に該当しなくても、産前産後休業終了日の翌日が属する月以後3ヶ月間に受けた報酬の平均値に基づき、4ヶ月目の標準報酬月額から改定することができます。ただし、産前産後休業を終了した翌日に引き続いて育児休業等を開始した場合は、この申出はできません、"]
[]
[]
[]
[]
[]
[]
[]
[null,"○",null,null,null,"変更後の標準報酬月額が以前より下がった方へ"]
[]
[]
[null,null,null,null,null,"3歳未満の子を養育する被保険者または被保険者であった者で、養育期間中の各月の標準報酬月額が、養育開始月の前月の標準報酬月額を下回る場合、「養育期間の従前標準報酬月額みなし措置」という制度をご利用いただけます。この申出をいただきますと、将来の年金額の計算時には養育期間以前の標準報酬月額を用いることができますので、「産前産後休業終了時報酬月額変更届」とあわせて、「養育期間標準報酬月額特例申出書」を提出して下さい。"]